fUST/lending_fUST_20240425
["ID","MTS","AMOUNT","RATE_DAILY","PERIOD"]
[323419346,1713975048701,-500.0,0.00016986,2]
[323419349,1713975048711,-500.0,0.00016986,2]
[323419351,1713975048721,-500.0,0.00016986,2]
[323419352,1713975048732,-598.88512567,0.00016986,2]
[323419354,1713975048743,-500.0,0.00016986,2]
[323419356,1713975048756,-500.0,0.00016986,2]
[323419358,1713975048766,-500.0,0.00016986,2]
[323419360,1713975048776,-500.0,0.00016986,2]
[323419362,1713975048786,-500.0,0.00016986,2]
[323419364,1713975048796,-500.0,0.00016986,2]
[323419366,1713975048808,-500.0,0.00016986,2]
[323419368,1713975048818,-500.0,0.00016986,2]
[323419370,1713975048829,-500.0,0.00016986,2]
[323419372,1713975048840,-527.68,0.00016986,2]
[323419375,1713975048851,-500.0,0.00016986,2]
[323419377,1713975048860,-500.0,0.00016986,2]
[323419378,1713975048870,-1586.37,0.00016986,2]
[323419381,1713975048880,-501.48172773,0.00016986,2]
[323419382,1713975048890,-500.0,0.00016986,2]
[323419385,1713975048901,-2297.43,0.00016986,2]
[323419386,1713975048910,-398.88697047,0.00016986,2]
[323419389,1713975048921,-1159.11,0.00016986,2]
[323419391,1713975048932,-500.0,0.00016986,2]
[323419392,1713975048942,-500.0,0.00016986,2]
[323419394,1713975048952,-846.04,0.00016986,2]
[323419397,1713975048962,-500.0,0.00016986,2]
[323419399,1713975048971,-500.0,0.00016986,2]
[323419401,1713975048981,-500.0,0.00016986,2]
[323419403,1713975048990,-500.0,0.00016986,2]
[323419404,1713975049002,-841.44,0.00016986,2]
[323419406,1713975049011,-500.0,0.00016986,2]
[323419409,1713975049021,-500.0,0.00016986,2]
[323419411,1713975049029,-500.0,0.00016986,2]
[323419413,1713975049038,-1881.77,0.00016986,2]
[323419415,1713975049048,-500.0,0.00016986,2]
[323419417,1713975049058,-500.0,0.00016986,2]
[323419419,1713975049068,-224.36484176,0.00016986,2]
[323419421,1713975049079,-500.0,0.00016986,2]
[323419423,1713975049088,-829.11,0.00016986,2]
[323419425,1713975049097,-734.09,0.00016986,2]
[323419427,1713975049108,-730.95,0.00016986,2]
[323419428,1713975049118,-500.0,0.00016986,2]
[323419430,1713975049128,-500.0,0.00016986,2]
[323419432,1713975049138,-200.52326408,0.00016986,2]
[323419434,1713975049147,-846.86,0.00016986,2]
[323419436,1713975049157,-1671.77,0.00016986,2]
[323419438,1713975049166,-500.0,0.00016986,2]
[323419440,1713975049175,-500.0,0.00016986,2]
[323419442,1713975049186,-500.0,0.00016986,2]
[323419444,1713975049196,-500.0,0.00016986,2]
[323419446,1713975049207,-500.0,0.00016986,2]
[323419449,1713975049217,-500.0,0.00016986,2]
[323419451,1713975049227,-500.0,0.00016986,2]
[323419453,1713975049236,-500.0,0.00016986,2]
[323419455,1713975049248,-641.71,0.00016986,2]
[323419457,1713975049258,-500.0,0.00016986,2]
[323419459,1713975049269,-500.0,0.00016986,2]
[323419461,1713975049280,-500.0,0.00016986,2]
[323419463,1713975049290,-690.46,0.00016986,2]
[323419465,1713975049300,-500.0,0.00016986,2]
[323419467,1713975049310,-586.3,0.00016986,2]
[323419469,1713975049320,-171.97717731,0.00016986,2]
[323419471,1713975049330,-372.66256397,0.00016986,2]
[323419473,1713975049340,-500.0,0.00016986,2]
[323419475,1713975049350,-943.62,0.00016986,2]
[323419477,1713975049359,-500.0,0.00016986,2]
[323419479,1713975049369,-1573.98,0.00016986,2]
[323419481,1713975049378,-500.0,0.00016986,2]
[323419483,1713975049388,-500.0,0.00016986,2]
[323419485,1713975049398,-789.5,0.00016986,2]
[323419487,1713975049407,-500.0,0.00016986,2]
[323419489,1713975049418,-2192.71,0.00016986,2]
[323419491,1713975049429,-500.0,0.00016986,2]
[323419493,1713975049440,-500.0,0.00016986,2]
[323419495,1713975049450,-500.0,0.00016986,2]
[323419497,1713975049461,-529.0,0.00016986,2]
[323419499,1713975049473,-318.72066129,0.00016986,2]
[323419501,1713975049485,-500.0,0.00016986,2]
[323419503,1713975049497,-500.0,0.00016986,2]
[323419504,1713975049508,-500.0,0.00016986,2]
[323419506,1713975049518,-500.0,0.00016986,2]
[323419508,1713975049529,-822.61,0.00016986,2]
[323419511,1713975049540,-500.0,0.00016986,2]
[323419513,1713975049552,-500.0,0.00016986,2]
[323419515,1713975049561,-2097.13,0.00016986,2]
[323419517,1713975049571,-998.74,0.00016986,2]
[323419519,1713975049582,-598.26,0.00016986,2]
[323419521,1713975049593,-1562.91,0.00016986,2]
[323419522,1713975049604,-500.0,0.00016986,2]
[323419524,1713975049614,-251.981946,0.00016986,2]
[323419527,1713975049624,-251.981946,0.00016986,2]
[323419529,1713975049635,-500.0,0.00016986,2]
[323419530,1713975049647,-590.03,0.00016986,2]
[323419533,1713975049657,-251.981946,0.00016986,2]
[323419535,1713975049668,-251.981946,0.00016986,2]
[323419536,1713975049678,-500.0,0.00016986,2]
[323419539,1713975049687,-500.0,0.00016986,2]
[323419540,1713975049698,-500.0,0.00016986,2]
[323419543,1713975049708,-500.0,0.00016986,2]
[323419545,1713975049718,-500.0,0.00016986,2]
[323419546,1713975049728,-500.0,0.00016986,2]
[323419548,1713975049739,-500.0,0.00016986,2]
[323419550,1713975049755,-2419.79,0.00016986,2]
[323419552,1713975049766,-500.0,0.00016986,2]
[323419554,1713975049776,-500.0,0.00016986,2]
[323419556,1713975049785,-291.97265709,0.00016986,2]
[323419558,1713975049795,-500.0,0.00016986,2]
[323419560,1713975049809,-292.170461,0.00016986,2]
[323419562,1713975049819,-292.170461,0.00016986,2]
[323419564,1713975049830,-500.0,0.00016986,2]
[323419566,1713975049841,-292.170461,0.00016986,2]
[323419568,1713975049850,-500.0,0.00016986,2]
[323419571,1713975049861,-292.170461,0.00016986,2]
[323419572,1713975049872,-500.0,0.00016986,2]
[323419574,1713975049883,-500.0,0.00016986,2]
[323419577,1713975049893,-500.0,0.00016986,2]
[323419579,1713975049904,-500.0,0.00016986,2]
[323419581,1713975049915,-1175.27,0.00016986,2]
[323419582,1713975049925,-9280.23,0.00016986,2]
[323419584,1713975049936,-1480.74,0.00016986,2]
[323419586,1713975049946,-629.51,0.00016986,2]
[323419588,1713975049956,-1960.03,0.00016986,2]
[323419590,1713975049964,-500.0,0.00016986,2]
[323419592,1713975049974,-1788.24,0.00016986,2]
[323419595,1713975049984,-1675.37,0.00016986,2]
[323419596,1713975049997,-1298.62,0.00016986,2]
[323419598,1713975050008,-500.0,0.00016986,2]
[323419601,1713975050019,-602.15,0.00016986,2]
[323419602,1713975050029,-1002.06,0.00016986,2]
[323419604,1713975050040,-500.0,0.00016986,2]
[323419607,1713975050050,-500.0,0.00016986,2]
[323419608,1713975050060,-971.73,0.00016986,2]
[323419610,1713975050070,-1533.51,0.00016986,2]
[323419612,1713975050080,-21495.2,0.00016986,2]
[323419615,1713975050091,-960.27,0.00016986,2]
[323419617,1713975050102,-500.0,0.00016986,2]
[323419619,1713975050112,-1047.76,0.00016986,2]
[323419620,1713975050122,-1293.81,0.00016986,2]
[323419622,1713975050133,-19586.79,0.00016986,2]
[323419625,1713975050144,-500.0,0.00016986,2]
[323419627,1713975050155,-545.29,0.00016986,2]
[323419628,1713975050165,-691.77,0.00016986,2]
[323419631,1713975050175,-502.75127659,0.00016986,2]
[323419633,1713975050185,-500.0,0.00016986,2]
[323419635,1713975050195,-7241.22,0.00016986,2]
[323419636,1713975050206,-1307.55,0.00016986,2]
[323419638,1713975050218,-500.0,0.00016986,2]
[323419640,1713975050227,-1985.19,0.00016986,2]
[323419642,1713975050238,-466.6483388,0.00016986,2]
[323419645,1713975050250,-9852.86,0.00016986,2]
[323419647,1713975050261,-500.0,0.00016986,2]
[323419648,1713975050271,-982.22,0.00016986,2]
[323419651,1713975050281,-174.55481657,0.00016986,2]
[323419653,1713975050292,-500.0,0.00016986,2]
[323419654,1713975050302,-1008.71,0.00016986,2]
[323419656,1713975050312,-7791.77,0.00016986,2]
[323419658,1713975050323,-500.0,0.00016986,2]
[323419661,1713975050333,-166.937211,0.00016986,2]
[323419662,1713975050343,-166.937211,0.00016986,2]
[323419665,1713975050354,-500.0,0.00016986,2]
[323419667,1713975050363,-166.937211,0.00016986,2]
[323419668,1713975050374,-626.84,0.00016986,2]
[323419670,1713975050383,-166.937211,0.00016986,2]
[323419673,1713975050393,-638.78,0.00016986,2]
[323419675,1713975050402,-500.0,0.00016986,2]
[323419676,1713975050413,-500.0,0.00016986,2]
[323419678,1713975050423,-641.44,0.00016986,2]
[323419681,1713975050434,-500.0,0.00016986,2]
[323419682,1713975050445,-500.0,0.00016986,2]
[323419685,1713975050456,-502.22270459,0.00016986,2]
[323419687,1713975050468,-500.0,0.00016986,2]
[323419689,1713975050479,-219.226602,0.00016986,2]
[323419690,1713975050488,-219.226602,0.00016986,2]
[323419692,1713975050502,-2176.27,0.00016986,2]
[323419695,1713975050513,-1355.56,0.00016986,2]
[323419697,1713975050524,-602.12,0.00016986,2]
[323419698,1713975050535,-2426.9,0.00016986,2]
[323419701,1713975050547,-1362.57,0.00016986,2]
[323419703,1713975050557,-20958.66,0.00016986,2]
[323419704,1713975050567,-219.226602,0.00016986,2]
[323419706,1713975050578,-522.79,0.00016986,2]
[323419709,1713975050589,-219.226602,0.00016986,2]
[323419710,1713975050598,-500.0,0.00016986,2]
[323419712,1713975050609,-500.0,0.00016986,2]
[323419714,1713975050619,-595.36,0.00016986,2]
[323419716,1713975050630,-1144.06,0.00016986,2]
[323419719,1713975050640,-883.66,0.00016986,2]
[323419720,1713975050650,-1035.28,0.00016986,2]
[323419722,1713975050661,-500.0,0.00016986,2]
[323419724,1713975050672,-749.1,0.00016986,2]
[323419726,1713975050682,-500.0,0.00016986,2]
[323419728,1713975050693,-1841.01,0.00016986,2]
[323419730,1713975050703,-500.0,0.00016986,2]
[323419732,1713975050714,-500.0,0.00016986,2]
[323419734,1713975050724,-4954.95,0.00016986,2]
[323419736,1713975050734,-898.44,0.00016986,2]
[323419738,1713975050744,-6819.29,0.00016986,2]
[323419751,1713975050869,-2282.45,0.00016986,2]
[323419753,1713975050880,-1610.59,0.00016986,2]
[323419755,1713975050889,-500.0,0.00016986,2]
[323419757,1713975050900,-3467.77,0.00016986,2]
[323419759,1713975050910,-500.0,0.00016986,2]
[323419761,1713975050920,-2682.8,0.00016986,2]
[323419763,1713975050930,-500.0,0.00016986,2]
[323419765,1713975050940,-804.75,0.00016986,2]
[323419767,1713975050950,-500.0,0.00016986,2]
[323419769,1713975050960,-500.0,0.00016986,2]
[323419771,1713975050969,-634.36,0.00016986,2]
[323419773,1713975050979,-500.0,0.00016986,2]
[323419775,1713975050988,-6675.69,0.00016986,2]
[323419777,1713975050999,-500.0,0.00016986,2]
[323419779,1713975051008,-500.0,0.00016986,2]
[323419781,1713975051018,-3678.5,0.00016986,2]
[323419783,1713975051028,-500.0,0.00016986,2]
[323419785,1713975051038,-1093.45,0.00016986,2]
[323419787,1713975051050,-500.0,0.00016986,2]
[323419789,1713975051060,-500.0,0.00016986,2]
[323419791,1713975051070,-500.0,0.00016986,2]
[323419793,1713975051081,-562.55,0.00016986,2]
[323419795,1713975051090,-500.0,0.00016986,2]
[323419797,1713975051099,-637.46,0.00016986,2]
[323419799,1713975051109,-500.0,0.00016986,2]
[323419801,1713975051119,-151.0,0.00016986,2]
[323419803,1713975051129,-151.0,0.00016986,2]
[323419805,1713975051139,-500.0,0.00016986,2]
[323419807,1713975051149,-500.0,0.00016986,2]
[323419809,1713975051159,-151.0,0.00016986,2]
[323419811,1713975051169,-151.0,0.00016986,2]
[323419813,1713975051179,-806.91,0.00016986,2]
[323419815,1713975051190,-1310.72,0.00016986,2]
[323419817,1713975051200,-500.0,0.00016986,2]
[323419819,1713975051210,-922.41,0.00016986,2]
[323419821,1713975051221,-152.664016,0.00016986,2]
[323419823,1713975051231,-152.664016,0.00016986,2]
[323419825,1713975051241,-1294.3,0.00016986,2]
[323419827,1713975051253,-776.68,0.00016986,2]
[323419829,1713975051263,-152.664016,0.00016986,2]
[323419831,1713975051273,-152.664016,0.00016986,2]
[323419833,1713975051282,-639.1,0.00016986,2]
[323419835,1713975051292,-500.0,0.00016986,2]
[323419837,1713975051301,-7426.29,0.00016986,2]
[323419839,1713975051311,-500.0,0.00016986,2]
[323419841,1713975051321,-500.0,0.00016986,2]
[323419843,1713975051331,-500.0,0.00016986,2]
[323419845,1713975051340,-500.0,0.00016986,2]
[323419847,1713975051349,-500.0,0.00016986,2]
[323419849,1713975051359,-500.0,0.00016986,2]
[323419851,1713975051368,-500.0,0.00016986,2]
[323419853,1713975051378,-150.0,0.0001713,2]
[323419855,1713975051388,-1673.426036,0.00017144,2]
[323419857,1713975051398,-1859.308582,0.00017144,2]
[323419859,1713975051408,-1859.308583,0.00017144,2]
[323419861,1713975051418,-1673.426035,0.00017144,2]
[323419863,1713975051427,-371.861716,0.00017144,2]
[323419865,1713975051443,-769.775977,0.00017144,2]
[323419867,1713975051453,-557.792575,0.00017144,2]
[323419869,1713975051463,-46860.0,0.000172,2]
[323419871,1713975051472,-219.226602,0.000172,2]
[323419873,1713975051483,-219.226602,0.000172,2]
[323419875,1713975051493,-151.0,0.000172,2]
[323419877,1713975051505,-151.0,0.000172,2]
[323419879,1713975051514,-152.664016,0.000172,2]
[323419881,1713975051525,-152.664016,0.000172,2]
[323419883,1713975051534,-500.0,0.0001726,2]
[323419885,1713975051545,-500.0,0.0001726,2]
[323419887,1713975051555,-500.0,0.0001726,2]
[323419889,1713975051565,-1021.04,0.0001726,2]
[323419891,1713975051574,-500.0,0.0001726,2]
[323419893,1713975051583,-750.56,0.0001726,2]
[323419895,1713975051593,-500.0,0.0001726,2]
[323419897,1713975051604,-1006.57,0.0001726,2]
[323419899,1713975051614,-166.87951574,0.0001726,2]
[323419901,1713975051623,-683.25,0.0001726,2]
[323419904,1713975051633,-500.0,0.0001726,2]
[323419906,1713975051643,-500.0,0.0001726,2]
[323419908,1713975051653,-500.0,0.0001726,2]
[323419909,1713975051662,-574.84,0.0001726,2]
[323419911,1713975051672,-1993.95,0.0001726,2]
[323419913,1713975051681,-500.0,0.0001726,2]
[323419915,1713975051691,-500.0,0.0001726,2]
[323419917,1713975051700,-280.5249904,0.0001726,2]
[323419919,1713975051709,-500.0,0.0001726,2]
[323419921,1713975051718,-500.0,0.0001726,2]
[323419923,1713975051727,-500.0,0.0001726,2]
[323419925,1713975051736,-500.0,0.0001726,2]
[323419927,1713975051745,-500.0,0.0001726,2]
[323419930,1713975051758,-912.71,0.0001726,2]
[323419931,1713975051767,-611.19,0.0001726,2]
[323419934,1713975051776,-713.13,0.0001726,2]
[323419936,1713975051786,-562.35,0.0001726,2]
[323419938,1713975051795,-500.0,0.0001726,2]
[323419939,1713975051804,-602.56,0.0001726,2]
[323419941,1713975051813,-500.0,0.0001726,2]
[323419943,1713975051822,-500.0,0.0001726,2]
[323419946,1713975051831,-500.0,0.0001726,2]
[323419947,1713975051840,-563.3,0.0001726,2]
[323419950,1713975051850,-500.0,0.0001726,2]
[323419952,1713975051859,-2945.86,0.0001726,2]
[323419953,1713975051868,-500.0,0.0001726,2]
[323419955,1713975051878,-500.0,0.0001726,2]
[323419958,1713975051888,-500.0,0.0001726,2]
[323419960,1713975051898,-500.0,0.0001726,2]
[323419962,1713975051908,-500.0,0.0001726,2]
[323419964,1713975051917,-500.0,0.0001726,2]
[323419966,1713975051926,-500.0,0.0001726,2]
[323419968,1713975051935,-500.0,0.0001726,2]
[323419970,1713975051944,-500.0,0.0001726,2]
[323419972,1713975051954,-500.0,0.0001726,2]
[323419974,1713975051963,-500.0,0.0001726,2]
[323419976,1713975051972,-500.0,0.0001726,2]
[323419977,1713975051981,-500.0,0.0001726,2]
[323419979,1713975051990,-500.0,0.0001726,2]
[323419981,1713975052001,-500.0,0.0001726,2]
[323419983,1713975052010,-503.21389459,0.0001726,2]
[323419985,1713975052019,-500.0,0.0001726,2]
[323419988,1713975052028,-500.0,0.0001726,2]
[323419989,1713975052038,-527.68,0.0001726,2]
[323419992,1713975052047,-500.0,0.0001726,2]
[323419994,1713975052057,-500.0,0.0001726,2]
[323419996,1713975052066,-1586.37,0.0001726,2]
[323419997,1713975052076,-500.0,0.0001726,2]
[323419999,1713975052085,-2297.43,0.0001726,2]
[323420002,1713975052095,-1159.11,0.0001726,2]
[323420003,1713975052104,-420.85507138,0.0001726,2]
[323420005,1713975052113,-500.0,0.0001726,2]
[323420007,1713975052122,-846.04,0.0001726,2]
[323420008,1713975052131,-500.0,0.0001726,2]
[323420010,1713975052141,-500.0,0.0001726,2]
[323420013,1713975052150,-500.0,0.0001726,2]
[323420015,1713975052159,-500.0,0.0001726,2]
[323420016,1713975052168,-841.44,0.0001726,2]
[323420018,1713975052178,-500.0,0.0001726,2]
[323420020,1713975052187,-500.0,0.0001726,2]
[323420022,1713975052197,-500.0,0.0001726,2]
[323420024,1713975052208,-1881.77,0.0001726,2]
[323420027,1713975052217,-500.0,0.0001726,2]
[323420028,1713975052227,-500.0,0.0001726,2]
[323420030,1713975052236,-500.0,0.0001726,2]
[323420032,1713975052246,-829.11,0.0001726,2]
[323420035,1713975052257,-734.09,0.0001726,2]
[323420037,1713975052266,-730.95,0.0001726,2]
[323420038,1713975052274,-500.0,0.0001726,2]
[323420040,1713975052283,-500.0,0.0001726,2]
[323420042,1713975052293,-846.86,0.0001726,2]
[323420044,1713975052302,-1671.77,0.0001726,2]
[323420047,1713975052311,-500.0,0.0001726,2]
[323420049,1713975052320,-503.27683505,0.0001726,2]
[323420051,1713975052330,-500.0,0.0001726,2]
[323420052,1713975052340,-500.0,0.0001726,2]
[323420054,1713975052350,-500.0,0.0001726,2]
[323420056,1713975052359,-196.08637045,0.0001726,2]
[323420058,1713975052368,-500.0,0.0001726,2]
[323420060,1713975052377,-500.0,0.0001726,2]
[323420063,1713975052387,-641.71,0.0001726,2]
[323420064,1713975052396,-500.0,0.0001726,2]
[323420067,1713975052406,-500.0,0.0001726,2]
[323420068,1713975052415,-500.0,0.0001726,2]
[323420070,1713975052424,-690.46,0.0001726,2]
[323420072,1713975052435,-500.0,0.0001726,2]
[323420074,1713975052444,-586.3,0.0001726,2]
[323420076,1713975052453,-500.0,0.0001726,2]
[323420078,1713975052466,-943.62,0.0001726,2]
[323420080,1713975052475,-500.0,0.0001726,2]
[323420082,1713975052485,-1573.98,0.0001726,2]
[323420084,1713975052494,-500.0,0.0001726,2]
[323420086,1713975052505,-789.5,0.0001726,2]
[323420088,1713975052514,-2192.71,0.0001726,2]
[323420090,1713975052523,-500.0,0.0001726,2]
[323420092,1713975052532,-500.0,0.0001726,2]
[323420094,1713975052542,-500.0,0.0001726,2]
[323420096,1713975052552,-529.0,0.0001726,2]
[323420098,1713975052562,-500.0,0.0001726,2]
[323420100,1713975052571,-500.0,0.0001726,2]
[323420102,1713975052580,-500.0,0.0001726,2]
[323420104,1713975052588,-822.61,0.0001726,2]
[323420106,1713975052598,-500.0,0.0001726,2]
[323420108,1713975052607,-500.0,0.0001726,2]
[323420110,1713975052615,-2097.13,0.0001726,2]
[323420112,1713975052625,-998.74,0.0001726,2]
[323420114,1713975052634,-598.26,0.0001726,2]
[323420116,1713975052643,-1562.91,0.0001726,2]
[323420118,1713975052652,-500.0,0.0001726,2]
[323420120,1713975052661,-251.981946,0.0001726,2]
[323420122,1713975052670,-251.981946,0.0001726,2]
[323420124,1713975052679,-500.0,0.0001726,2]
[323420126,1713975052688,-590.03,0.0001726,2]
[323420128,1713975052698,-251.981946,0.0001726,2]
[323420130,1713975052708,-251.981946,0.0001726,2]
[323420132,1713975052718,-500.0,0.0001726,2]
[323420134,1713975052728,-500.0,0.0001726,2]
[323420136,1713975052739,-500.0,0.0001726,2]
[323420138,1713975052749,-500.0,0.0001726,2]
[323420140,1713975052759,-500.0,0.0001726,2]
[323420142,1713975052769,-500.0,0.0001726,2]
[323420144,1713975052779,-500.0,0.0001726,2]
[323420146,1713975052790,-2419.79,0.0001726,2]
[323420148,1713975052799,-500.0,0.0001726,2]
[323420149,1713975052808,-500.0,0.0001726,2]
[323420151,1713975052818,-292.170461,0.0001726,2]
[323420153,1713975052828,-386.12656123,0.0001726,2]
[323420155,1713975052838,-500.0,0.0001726,2]
[323420157,1713975052848,-292.170461,0.0001726,2]
[323420159,1713975052859,-500.0,0.0001726,2]
[323420161,1713975052868,-500.0,0.0001726,2]
[323420163,1713975052879,-500.0,0.0001726,2]
[323420165,1713975052889,-1175.27,0.0001726,2]
[323420167,1713975052898,-9280.23,0.0001726,2]
[323420169,1713975052909,-1480.74,0.0001726,2]
[323420171,1713975052919,-629.51,0.0001726,2]
[323420173,1713975052928,-1960.03,0.0001726,2]
[323420175,1713975052937,-500.0,0.0001726,2]
[323420177,1713975052946,-1788.24,0.0001726,2]
[323420179,1713975052956,-1675.37,0.0001726,2]
[323420181,1713975052966,-1298.62,0.0001726,2]
[323420183,1713975052975,-500.0,0.0001726,2]
[323420185,1713975052985,-602.15,0.0001726,2]
[323420187,1713975052995,-1002.06,0.0001726,2]
[323420189,1713975053008,-500.0,0.0001726,2]
[323420191,1713975053019,-500.0,0.0001726,2]
[323420193,1713975053029,-971.73,0.0001726,2]
[323420195,1713975053038,-1533.51,0.0001726,2]
[323420197,1713975053048,-21495.2,0.0001726,2]
[323420199,1713975053058,-960.27,0.0001726,2]
[323420201,1713975053068,-500.0,0.0001726,2]
[323420203,1713975053077,-1047.76,0.0001726,2]
[323420205,1713975053086,-1293.81,0.0001726,2]
[323420206,1713975053094,-19586.79,0.0001726,2]
[323420208,1713975053104,-500.0,0.0001726,2]
[323420210,1713975053114,-545.29,0.0001726,2]
[323420212,1713975053124,-691.77,0.0001726,2]
[323420214,1713975053134,-276.67371471,0.0001726,2]
[323420216,1713975053144,-7241.22,0.0001726,2]
[323420218,1713975053154,-1307.55,0.0001726,2]
[323420220,1713975053164,-500.0,0.0001726,2]
[323420222,1713975053174,-1985.19,0.0001726,2]
[323420224,1713975053183,-500.0,0.0001726,2]
[323420226,1713975053193,-9852.86,0.0001726,2]
[323420228,1713975053202,-982.22,0.0001726,2]
[323420239,1713975053213,-500.0,0.0001726,2]
[323420241,1713975053331,-1008.71,0.0001726,2]
[323420243,1713975053340,-7791.77,0.0001726,2]
[323420245,1713975053349,-500.0,0.0001726,2]
[323420247,1713975053359,-166.937211,0.0001726,2]
[323420249,1713975053368,-166.937211,0.0001726,2]
[323420251,1713975053378,-500.0,0.0001726,2]
[323420253,1713975053388,-626.84,0.0001726,2]
[323420255,1713975053397,-166.937211,0.0001726,2]
[323420257,1713975053406,-166.937211,0.0001726,2]
[323420259,1713975053416,-638.78,0.0001726,2]
[323420260,1713975053426,-500.0,0.0001726,2]
[323420262,1713975053440,-500.0,0.0001726,2]
[323420264,1713975053450,-641.44,0.0001726,2]
[323420266,1713975053460,-500.0,0.0001726,2]
[323420268,1713975053470,-500.0,0.0001726,2]
[323420270,1713975053481,-219.226602,0.0001726,2]
[323420272,1713975053491,-2176.27,0.0001726,2]
[323420274,1713975053505,-602.12,0.0001726,2]
[323420276,1713975053515,-1355.56,0.0001726,2]
[323420278,1713975053525,-2426.9,0.0001726,2]
[323420280,1713975053537,-1362.57,0.0001726,2]
[323420282,1713975053547,-20958.66,0.0001726,2]
[323420284,1713975053557,-522.79,0.0001726,2]
[323420286,1713975053567,-500.0,0.0001726,2]
[323420288,1713975053576,-500.0,0.0001726,2]
[323420290,1713975053586,-595.36,0.0001726,2]
[323420292,1713975053597,-219.226602,0.0001726,2]
[323420295,1713975053607,-1144.06,0.0001726,2]
[323420296,1713975053618,-883.66,0.0001726,2]
[323420298,1713975053628,-1035.28,0.0001726,2]
[323420301,1713975053639,-500.0,0.0001726,2]
[323420302,1713975053650,-749.1,0.0001726,2]
[323420305,1713975053660,-500.0,0.0001726,2]
[323420306,1713975053671,-1841.01,0.0001726,2]
[323420308,1713975053681,-500.0,0.0001726,2]
[323420310,1713975053691,-500.0,0.0001726,2]
[323420312,1713975053701,-4954.95,0.0001726,2]
[323420314,1713975053710,-898.44,0.0001726,2]
[323420316,1713975053720,-2282.45,0.0001726,2]
[323420318,1713975053729,-1610.59,0.0001726,2]
[323420320,1713975053739,-6819.29,0.0001726,2]
[323420322,1713975053750,-500.0,0.0001726,2]
[323420324,1713975053760,-3467.77,0.0001726,2]
[323420325,1713975053771,-500.0,0.0001726,2]
[323420326,1713975053780,-2682.8,0.0001726,2]
[323420327,1713975053791,-500.0,0.0001726,2]
[323420328,1713975053801,-804.75,0.0001726,2]
[323420329,1713975053812,-500.0,0.0001726,2]
[323420330,1713975053822,-634.36,0.0001726,2]
[323420332,1713975053833,-500.0,0.0001726,2]
[323420334,1713975053844,-500.0,0.0001726,2]
[323420336,1713975053856,-6675.69,0.0001726,2]
[323420338,1713975053867,-500.0,0.0001726,2]
[323420340,1713975053877,-500.0,0.0001726,2]
[323420342,1713975053887,-3678.5,0.0001726,2]
[323420344,1713975053897,-500.0,0.0001726,2]
[323420346,1713975053907,-1093.45,0.0001726,2]
[323420348,1713975053916,-500.0,0.0001726,2]
[323420350,1713975053927,-500.0,0.0001726,2]
[323420352,1713975053937,-503.60609359,0.0001726,2]
[323420354,1713975053947,-562.55,0.0001726,2]